lending/lending_fUSD_20260310
["ID","MTS","AMOUNT","RATE_DAILY","PERIOD"]
[408084190,1773125440858,-3198.48,0.0001725,2]
[408084191,1773125440868,-3216.31,0.00017283,2]
[408084192,1773125440877,-166.66,0.00017431,2]
[408084193,1773125440887,-2027.56,0.00017449,2]
[408084194,1773125440896,-4703.67,0.00017515,2]
[408084195,1773125440905,-500.0,0.00017628,2]
[408084196,1773125440915,-3216.31,0.00017704,2]
[408084197,1773125440924,-166.66,0.00017776,2]
[408084198,1773125440934,-1000.0,0.00017808,2]
[408084199,1773125440943,-800.0,0.00017808,2]
[408084200,1773125440952,-2063.01807231,0.000179,2]
[408084202,1773125440962,-166.67,0.00017922,2]
[408084204,1773125440971,-150.0,0.00017951,2]
[408084205,1773125440980,-5126.30465563,0.00017991,2]
[408084206,1773125440989,-158.12854728,0.0001806,2]
[408084207,1773125440999,-153.75048617,0.0001806,2]
[408084208,1773125441009,-150.0,0.0001806,2]
[408084209,1773125441019,-446.34,0.00018081,2]
[408084210,1773125441029,-1000.0,0.00018082,2]
[408084211,1773125441039,-200.0,0.00018083,2]
[408084212,1773125441048,-151.0,0.00018091,2]
[408084213,1773125441058,-151.0,0.00018091,2]
[408084214,1773125441067,-250.0,0.00018091,2]
[408084215,1773125441076,-695.39793187,0.00018091,2]
[408084216,1773125441086,-1000.0,0.00018091,2]
[408084217,1773125441095,-250.0,0.00018091,2]
[408084218,1773125441109,-250.0,0.00018091,2]
[408084219,1773125441118,-250.0,0.00018091,2]
[408084220,1773125441128,-250.0,0.00018091,2]
[408084221,1773125441137,-250.0,0.00018091,2]
[408084222,1773125441147,-250.0,0.00018091,2]
[408084223,1773125441157,-1500.0,0.00018091,2]
[408084224,1773125441169,-250.0,0.00018091,2]
[408084225,1773125441179,-1500.0,0.00018091,2]
[408084226,1773125441189,-1592.44280863,0.00018091,2]
[408084227,1773125441200,-578.20924308,0.00018091,2]
[408084228,1773125441211,-250.0,0.00018091,2]
[408084229,1773125441222,-250.0,0.00018091,2]
[408084230,1773125441233,-250.0,0.00018091,2]
[408084231,1773125441243,-250.0,0.00018091,2]
[408084232,1773125441254,-500.0,0.00018091,2]
[408084233,1773125441264,-250.0,0.00018091,2]
[408084234,1773125441277,-250.0,0.00018091,2]
[408084235,1773125441286,-10000.0,0.00018091,2]
[408084236,1773125441296,-250.0,0.00018091,2]
[408084237,1773125441305,-250.0,0.00018091,2]
[408084238,1773125441315,-7503.13469147,0.00018091,2]
[408084239,1773125441326,-174.61919141,0.00018091,2]
[408084240,1773125441337,-743.50770149,0.00018091,2]
[408084241,1773125441347,-250.0,0.00018091,2]
[408084242,1773125441356,-1000.0,0.00018091,2]
[408084243,1773125441367,-250.0,0.00018091,2]
[408084244,1773125441378,-256.00624791,0.00018091,2]
[408084245,1773125441388,-773.73733787,0.00018091,2]
[408084246,1773125441399,-200.0,0.00018091,2]
[408084247,1773125441409,-151.0,0.00018091,2]
[408084248,1773125441421,-266.11523531,0.00018091,2]
[408084249,1773125441431,-1500.0,0.00018091,2]
[408084250,1773125441442,-1500.0,0.00018091,2]
[408084251,1773125441453,-262.90206542,0.00018091,2]
[408084252,1773125441463,-1500.0,0.00018091,2]
[408084253,1773125441475,-1500.0,0.00018091,2]
[408084254,1773125441485,-1500.0,0.00018091,2]
[408084255,1773125441495,-1500.0,0.00018091,2]
[408084256,1773125441507,-1041.02516385,0.00018091,2]
[408084257,1773125441517,-668.65185757,0.00018091,2]
[408084258,1773125441529,-284.23461193,0.00018091,2]
[408084259,1773125441539,-500.0,0.00018094,2]
[408084260,1773125441551,-500.0,0.00018094,2]
[408084261,1773125441562,-150.0,0.00018094,2]
[408084262,1773125441573,-204.83861542,0.00018094,2]
[408084263,1773125441587,-500.0,0.00018094,2]
[408084264,1773125441598,-500.0,0.00018094,2]
[408084265,1773125441608,-150.0,0.00018094,2]
[408084266,1773125441619,-150.51586392,0.00018094,2]
[408084267,1773125441631,-151.19383815,0.00018094,2]
[408084268,1773125441644,-150.0,0.00018094,2]
[408084269,1773125441655,-150.0,0.00018094,2]
[408084270,1773125441666,-500.0,0.00018094,2]
[408084271,1773125441676,-500.0,0.00018094,2]
[408084272,1773125441686,-739.67,0.00018112,2]
[408084273,1773125441696,-152.49408871,0.00018115,2]
[408084274,1773125441707,-1680.0,0.0001812,2]
[408084275,1773125441717,-166.66,0.00018121,2]
[408084276,1773125441727,-3216.31,0.00018126,2]
[408084277,1773125441737,-151.0,0.00018146,2]
[408084278,1773125441747,-500.0,0.00018149,2]
[408084279,1773125441757,-500.0,0.00018149,2]
[408084280,1773125441766,-150.0,0.00018149,2]
[408084281,1773125441776,-500.0,0.00018149,2]
[408084282,1773125441786,-500.0,0.00018149,2]
[408084283,1773125441796,-231.17936295,0.00018149,2]
[408084284,1773125441806,-159.60904999,0.00018149,2]
[408084285,1773125441815,-150.0,0.00018149,2]
[408084286,1773125441825,-508.22060755,0.00018149,2]
[408084287,1773125441835,-509.41970448,0.00018149,2]
[408084288,1773125441844,-5126.30465555,0.000182,2]
[408084289,1773125441855,-151.0,0.00018201,2]
[408084290,1773125441864,-500.0,0.00018204,2]
[408084291,1773125441874,-160.61378813,0.00018204,2]
[408084292,1773125441884,-201.77442938,0.00018204,2]
[408084293,1773125441894,-336.58574152,0.00018204,2]
[408084294,1773125441904,-450.0,0.00018204,2]
[408084295,1773125441915,-150.0,0.00018204,2]
[408084296,1773125441924,-152.0,0.0001824,3]
[408084297,1773125441934,-151.0,0.00018256,2]
[408084298,1773125441944,-500.0,0.00018258,2]
[408084299,1773125441954,-288.79400444,0.00018311,2]
[408084300,1773125441964,-500.0,0.00018313,2]
[408084301,1773125441973,-500.0,0.00018327,7]
[408084302,1773125441983,-700.0,0.00018327,7]
[408084303,1773125441993,-500.0,0.00018327,7]
[408084304,1773125442003,-1000.0,0.00018356,2]
[408084305,1773125442012,-300.0,0.00018368,2]
[408084306,1773125442022,-500.0,0.00018368,2]
[408084307,1773125442035,-1276.27723072,0.00018369,2]
[408084308,1773125442045,-151.0,0.00018369,2]
[408084309,1773125442055,-151.0,0.00018369,2]
[408084310,1773125442064,-151.0,0.00018369,2]
[408084311,1773125442074,-151.0,0.00018369,2]
[408084312,1773125442083,-341.552132,0.00018369,2]
[408084313,1773125442093,-341.552132,0.00018369,2]
[408084314,1773125442103,-341.552132,0.00018369,2]
[408084315,1773125442113,-341.552132,0.00018369,2]
[408084316,1773125442122,-151.0,0.00018369,2]
[408084317,1773125442132,-151.0,0.00018369,2]
[408084318,1773125442142,-151.0,0.00018369,2]
[408084319,1773125442151,-151.0,0.00018369,2]
[408084320,1773125442161,-151.0,0.00018369,2]
[408084321,1773125442170,-151.0,0.00018369,2]
[408084322,1773125442180,-446.34,0.00018398,2]
[408084323,1773125442189,-446.34,0.00018398,2]
[408084324,1773125442199,-446.34,0.00018398,2]
[408084325,1773125442209,-171.6,0.00018398,2]
[408084326,1773125442219,-301489.5475,0.00018408,2]
[408084327,1773125442228,-151.0,0.00018408,2]
[408084328,1773125442238,-151.0,0.00018408,2]
[408084329,1773125442248,-151.0,0.00018408,2]
[408084330,1773125442259,-151.0,0.00018408,2]
[408084331,1773125442268,-341.552132,0.00018408,2]
[408084332,1773125442278,-341.552132,0.00018408,2]
[408084333,1773125442289,-341.552132,0.00018408,2]
[408084334,1773125442298,-341.552132,0.00018408,2]
[408084335,1773125442308,-151.0,0.00018408,2]
[408084336,1773125442318,-151.0,0.00018408,2]
[408084337,1773125442328,-151.0,0.00018408,2]
[408084338,1773125442338,-151.0,0.00018408,2]
[408084339,1773125442348,-151.0,0.00018408,2]
[408084340,1773125442358,-151.0,0.00018408,2]
[408084341,1773125442368,-151.0,0.00018408,2]
[408084342,1773125442379,-5126.30465555,0.00018409,2]
[408084343,1773125442389,-250.0,0.00018493,2]
[408084344,1773125442403,-151.0,0.00018505,2]
[408084345,1773125442413,-1591.7160631,0.00018506,2]
[408084346,1773125442424,-37024.7829227,0.00018506,2]
[408084347,1773125442434,-1288.8888651,0.00018506,2]
[408084348,1773125442443,-151.0,0.00018506,2]
[408084349,1773125442453,-151.0,0.00018506,2]
[408084350,1773125442464,-7566.819492,0.00018506,2]
[408084351,1773125442474,-151.0,0.00018506,2]
[408084352,1773125442484,-154.839094,0.00018506,2]
[408084353,1773125442494,-341.552132,0.00018506,2]
[408084354,1773125442504,-341.552132,0.00018506,2]
[408084355,1773125442513,-341.552132,0.00018506,2]
[408084356,1773125442523,-341.552132,0.00018506,2]
[408084357,1773125442533,-160.182804,0.00018506,2]
[408084358,1773125442543,-153.368128,0.00018506,2]
[408084359,1773125442552,-151.0,0.00018506,2]
[408084360,1773125442562,-151.0,0.00018506,2]
[408084361,1773125442571,-151.0,0.00018506,2]
[408084362,1773125442582,-209.26152,0.00018506,2]
[408084363,1773125442595,-515.97367444,0.00018507,2]
[408084364,1773125442606,-196.91493089,0.00018507,2]
[408084365,1773125442616,-500.0,0.00018507,2]
[408084366,1773125442627,-500.0,0.00018507,2]
[408084367,1773125442637,-500.0,0.00018507,2]
[408084368,1773125442649,-500.0,0.00018507,2]
[408084369,1773125442662,-500.0,0.00018507,2]
[408084370,1773125442673,-150.0,0.00018508,2]
[408084371,1773125442683,-150.35540241,0.00018508,2]
[408084372,1773125442693,-200.0,0.00018508,2]
[408084373,1773125442703,-151.0,0.0001853,2]
[408084374,1773125442713,-500.0,0.00018533,2]
[408084375,1773125442723,-500.0,0.00018533,2]
[408084376,1773125442734,-500.0,0.00018533,2]
[408084377,1773125442744,-3216.31,0.00018547,2]
[408084378,1773125442754,-700.0,0.00018606,2]
[408084379,1773125442763,-4146.9908431,0.00018607,2]
[408084380,1773125442773,-150.0,0.00018616,2]
[408084381,1773125442783,-5126.30465555,0.00018618,2]
[408084382,1773125442798,-151.0,0.0001863,2]
[408084383,1773125442808,-151.0,0.0001863,2]
[408084384,1773125442818,-151.0,0.0001863,2]
[408084385,1773125442829,-1000.0,0.0001863,2]
[408084386,1773125442839,-200.0,0.00018631,2]
[408084387,1773125442849,-1000.0,0.00018639,2]
[408084388,1773125442859,-771.01748645,0.00018639,2]
[408084389,1773125442869,-181.08010149,0.00018639,2]
[408084390,1773125442879,-200.0,0.00018639,2]
[408084391,1773125442890,-272.62944185,0.00018639,2]
[408084392,1773125442903,-693.3919763,0.00018639,2]
[408084393,1773125442913,-200.0,0.00018652,2]
[408084394,1773125442922,-151.0,0.00018689,2]
[408084395,1773125442932,-2535.73033567,0.00018739,3]
[408084396,1773125442942,-1006.88323238,0.00018767,3]
[408084397,1773125442952,-800.0,0.000188,6]
[408084398,1773125442962,-152.0,0.00018804,4]
[408084399,1773125442973,-5126.30465555,0.00018827,2]
[408084400,1773125442983,-151.0,0.000189,2]
[408084402,1773125442995,-1600.0,0.000189,6]
[408084404,1773125443004,-1000.0,0.00018904,2]
[408084406,1773125443014,-326.71810111,0.00018904,2]
[408084407,1773125443023,-500.0,0.00018969,7]
[408084408,1773125443033,-500.0,0.00018969,7]
[408084409,1773125443043,-500.0,0.00018969,7]
[408084410,1773125443052,-500.0,0.00018969,7]
[408084412,1773125443063,-500.0,0.00018969,7]
[408084414,1773125443074,-500.0,0.00018969,7]
[408084417,1773125443083,-500.0,0.00018969,7]
[408084420,1773125443093,-356.06,0.00018969,7]
[408084423,1773125443103,-500.0,0.00018969,7]
[408084425,1773125443112,-500.0,0.00018969,7]
[408084426,1773125443121,-500.0,0.00018969,7]
[408084427,1773125443132,-500.0,0.00018969,7]
[408084428,1773125443144,-500.0,0.00018969,7]
[408084429,1773125443156,-526.12,0.00018969,7]
[408084430,1773125443165,-500.0,0.00018969,7]
[408084431,1773125443175,-151.0,0.00018969,2]
[408084432,1773125443184,-151.0,0.00018969,2]
[408084433,1773125443194,-2000.0,0.00018971,2]
[408084434,1773125443205,-739.67,0.00018975,2]
[408084435,1773125443215,-1000.0,0.00019,2]
[408084436,1773125443225,-150.02,0.00019,2]
[408084437,1773125443237,-1000.0,0.00019,2]
[408084438,1773125443247,-500.0,0.00019,2]
[408084439,1773125443257,-500.0,0.00019,2]
[408084440,1773125443267,-235.69610359,0.00019,5]
[408084441,1773125443277,-159.96325403,0.00019014,2]
[408084442,1773125443289,-5126.30465555,0.00019036,2]
[408084443,1773125443299,-500.0,0.00019058,2]
[408084444,1773125443310,-500.0,0.00019058,2]
[408084445,1773125443319,-341.552132,0.0001907,2]
[408084446,1773125443331,-341.552132,0.0001907,2]
[408084447,1773125443340,-341.552132,0.0001907,2]
[408084448,1773125443350,-341.552132,0.0001907,2]
[408084450,1773125443360,-300.0,0.000191,2]
[408084451,1773125443378,-593.28,0.00019106,2]
[408084452,1773125443389,-720.9,0.00019106,2]
[408084453,1773125443400,-172.91703981,0.00019113,2]
[408084454,1773125443409,-160.0,0.00019113,2]
[408084455,1773125443419,-1055.0,0.00019159,2]
[408084456,1773125443429,-500.0,0.00019173,2]
[408084457,1773125443440,-598.70848817,0.00019173,2]
[408084458,1773125443450,-500.0,0.00019173,2]
[408084459,1773125443460,-502.88638426,0.00019173,2]
[408084460,1773125443469,-502.82905957,0.00019173,2]
[408084461,1773125443479,-500.0,0.00019173,2]
[408084464,1773125443489,-500.0,0.00019173,2]
[408084465,1773125443499,-169.0731941,0.00019173,2]
[408084467,1773125443508,-500.0,0.00019173,2]
[408084469,1773125443518,-288.48885962,0.00019173,2]
[408084470,1773125443528,-502.01678571,0.00019173,2]
[408084471,1773125443538,-500.28250198,0.00019173,2]
[408084472,1773125443547,-501.95191187,0.00019173,2]
[408084473,1773125443557,-151.0,0.00019175,2]
[408084474,1773125443567,-500.0,0.00019177,2]
[408084475,1773125443577,-500.0,0.00019177,2]
[408084476,1773125443591,-500.0,0.00019177,2]
[408084477,1773125443601,-500.0,0.00019177,2]
[408084479,1773125443611,-500.0,0.00019177,2]
[408084481,1773125443621,-500.0,0.00019177,2]
[408084482,1773125443631,-193.06865743,0.00019177,2]
[408084484,1773125443641,-493.62253166,0.00019177,2]
[408084486,1773125443653,-197.67011682,0.00019177,2]
[408084487,1773125443662,-1053.0,0.00019178,2]
[408084488,1773125443672,-699.27,0.00019178,2]
[408084489,1773125443682,-154.683502,0.00019178,2]
[408084490,1773125443694,-341.552132,0.00019178,2]
[408084491,1773125443703,-341.552132,0.00019178,2]
[408084492,1773125443715,-341.552132,0.00019178,2]
[408084493,1773125443724,-341.552123,0.00019178,2]
[408084494,1773125443734,-151.0,0.00019178,2]
[408084495,1773125443743,-151.0,0.00019178,2]
[408084496,1773125443753,-676.0,0.00019178,30]
[408084497,1773125443762,-559.2,0.00019178,2]
[408084498,1773125443772,-28394.60388535,0.00019178,2]
[408084499,1773125443781,-151.0,0.00019178,2]
[408084500,1773125443791,-151.0,0.00019178,2]
[408084501,1773125443800,-151.0,0.00019178,2]
[408084502,1773125443810,-151.0,0.00019178,2]
[408084503,1773125443820,-151.0,0.00019178,2]
[408084504,1773125443829,-151.0,0.00019178,2]
[408084505,1773125443839,-151.0,0.00019178,2]
[408084506,1773125443848,-151.0,0.00019178,2]
[408084507,1773125443858,-151.0,0.00019178,2]
[408084508,1773125443869,-200.775125,0.00019178,2]
[408084509,1773125443878,-151.0,0.00019178,2]
[408084510,1773125443888,-151.0,0.00019178,2]
[408084511,1773125443898,-151.0,0.00019178,2]
[408084512,1773125443907,-151.0,0.00019178,2]
[408084513,1773125443916,-151.0,0.00019178,2]
[408084514,1773125443926,-151.0,0.00019178,2]
[408084515,1773125443935,-151.0,0.00019178,2]
[408084516,1773125443944,-151.0,0.00019178,2]
[408084517,1773125443953,-151.0,0.00019178,2]
[408084518,1773125443963,-151.0,0.00019178,2]
[408084519,1773125443973,-195.290384,0.00019178,2]
[408084520,1773125443982,-180.239223,0.00019178,2]
[408084521,1773125443993,-180.239223,0.00019178,2]
[408084522,1773125444002,-180.239223,0.00019178,2]
[408084523,1773125444012,-180.239223,0.00019178,2]
[408084524,1773125444021,-180.239223,0.00019178,2]
[408084525,1773125444032,-180.239223,0.00019178,2]
[408084526,1773125444042,-180.239223,0.00019178,2]
[408084527,1773125444052,-180.239223,0.00019178,2]
[408084528,1773125444062,-180.239223,0.00019178,2]
[408084529,1773125444072,-180.239223,0.00019178,2]
[408084530,1773125444082,-180.239223,0.00019178,2]
[408084531,1773125444092,-180.239223,0.00019178,2]
[408084532,1773125444101,-180.239223,0.00019178,2]
[408084533,1773125444111,-180.239223,0.00019178,2]
[408084534,1773125444120,-180.239223,0.00019178,2]
[408084535,1773125444129,-180.239223,0.00019178,2]
[408084536,1773125444138,-180.239223,0.00019178,2]
[408084537,1773125444149,-180.239223,0.00019178,2]
[408084538,1773125444158,-180.239223,0.00019178,2]
[408084539,1773125444168,-180.239227,0.00019178,2]
[408084540,1773125444177,-152.497116,0.00019178,2]
[408084541,1773125444187,-151.0,0.00019178,2]
[408084542,1773125444197,-151.0,0.00019178,2]
[408084543,1773125444207,-151.0,0.00019178,2]
[408084544,1773125444216,-151.0,0.00019178,2]
[408084545,1773125444226,-151.0,0.00019178,2]
[408084546,1773125444238,-151.0,0.00019178,2]
[408084547,1773125444248,-151.0,0.00019178,2]
[408084548,1773125444258,-151.0,0.00019178,2]
[408084549,1773125444267,-151.0,0.00019178,2]
[408084550,1773125444277,-262.263984,0.00019178,2]
[408084551,1773125444287,-151.0,0.00019178,2]
[408084552,1773125444297,-162.047308,0.00019178,2]
[408084553,1773125444307,-151.0,0.00019178,2]
[408084554,1773125444316,-151.0,0.00019178,2]
[408084555,1773125444326,-151.0,0.00019178,2]
[408084556,1773125444336,-151.0,0.00019178,2]
[408084557,1773125444347,-151.0,0.00019178,2]
[408084558,1773125444634,-151.0,0.00019178,2]
[408084559,1773125444645,-151.0,0.00019178,2]
[408084560,1773125444656,-151.0,0.00019178,2]
[408084561,1773125444666,-151.0,0.00019178,2]
[408084562,1773125444677,-151.0,0.00019178,2]
[408084563,1773125444687,-151.0,0.00019178,2]
[408084564,1773125444696,-151.0,0.00019178,2]
[408084565,1773125444705,-250.021137,0.00019178,2]
[408084566,1773125444714,-159.114405,0.00019178,2]
[408084567,1773125444724,-707.115701,0.00019178,2]
[408084568,1773125444733,-707.115701,0.00019178,2]
[408084569,1773125444743,-707.115701,0.00019178,2]
[408084570,1773125444752,-707.115701,0.00019178,2]
[408084571,1773125444761,-707.115701,0.00019178,2]
[408084572,1773125444771,-707.115701,0.00019178,2]
[408084573,1773125444780,-707.115701,0.00019178,2]
[408084574,1773125444789,-707.115701,0.00019178,2]
[408084575,1773125444798,-707.115701,0.00019178,2]
[408084576,1773125444807,-707.115701,0.00019178,2]
[408084577,1773125444817,-707.115701,0.00019178,2]
[408084578,1773125444826,-707.115701,0.00019178,2]
[408084579,1773125444835,-707.115701,0.00019178,2]
[408084580,1773125444843,-707.115701,0.00019178,2]
[408084581,1773125444853,-707.115701,0.00019178,2]
[408084582,1773125444862,-707.115701,0.00019178,2]
[408084583,1773125444871,-707.115701,0.00019178,2]
[408084584,1773125444880,-707.115701,0.00019178,2]
[408084585,1773125444890,-707.115701,0.00019178,2]
[408084586,1773125444899,-707.115695,0.00019178,2]
[408084587,1773125444908,-718.616818,0.00019178,2]
[408084588,1773125444917,-718.616818,0.00019178,2]
[408084589,1773125444927,-718.616818,0.00019178,2]
[408084590,1773125444936,-718.616818,0.00019178,2]
[408084591,1773125444945,-718.616818,0.00019178,2]
[408084592,1773125444954,-718.616818,0.00019178,2]
[408084593,1773125444963,-718.616818,0.00019178,2]
[408084594,1773125444972,-718.616818,0.00019178,2]
[408084595,1773125444981,-718.616818,0.00019178,2]
[408084596,1773125444991,-718.616818,0.00019178,2]
[408084597,1773125445001,-718.616818,0.00019178,2]
[408084598,1773125445010,-718.616818,0.00019178,2]
[408084599,1773125445020,-718.616818,0.00019178,2]
[408084600,1773125445036,-718.616818,0.00019178,2]
[408084601,1773125445045,-718.616818,0.00019178,2]
[408084602,1773125445055,-718.616818,0.00019178,2]
[408084603,1773125445064,-718.616818,0.00019178,2]
[408084604,1773125445075,-718.616818,0.00019178,2]
[408084605,1773125445084,-718.616818,0.00019178,2]
[408084606,1773125445093,-718.616813,0.00019178,2]
[408084607,1773125445102,-151.0,0.00019178,2]
[408084608,1773125445111,-189.498979,0.00019178,2]
[408084609,1773125445121,-151.0,0.00019178,2]
[408084610,1773125445130,-151.0,0.00019178,2]
[408084611,1773125445140,-151.0,0.00019178,2]
[408084612,1773125445150,-151.0,0.00019178,2]
[408084613,1773125445159,-151.0,0.00019178,2]
[408084614,1773125445168,-184.906114,0.00019178,2]
[408084615,1773125445179,-184.906114,0.00019178,2]
[408084616,1773125445189,-184.906114,0.00019178,2]
[408084617,1773125445199,-184.906114,0.00019178,2]
[408084618,1773125445209,-184.906114,0.00019178,2]
[408084619,1773125445219,-184.906114,0.00019178,2]
[408084620,1773125445229,-184.906114,0.00019178,2]
[408084621,1773125445239,-184.906114,0.00019178,2]
[408084622,1773125445249,-184.906114,0.00019178,2]
[408084623,1773125445258,-184.906114,0.00019178,2]
[408084624,1773125445270,-184.906114,0.00019178,2]
[408084625,1773125445279,-184.906114,0.00019178,2]
[408084626,1773125445290,-151.0,0.00019178,2]
[408084627,1773125445300,-184.906114,0.00019178,2]
[408084628,1773125445309,-155.42895,0.00019178,2]
[408084629,1773125445318,-184.906114,0.00019178,2]
[408084630,1773125445327,-184.906114,0.00019178,2]
[408084631,1773125445337,-184.906114,0.00019178,2]
[408084632,1773125445350,-184.906114,0.00019178,2]
[408084633,1773125445359,-184.906114,0.00019178,2]
[408084634,1773125445369,-184.906114,0.00019178,2]
[408084635,1773125445380,-186.493858,0.00019178,2]
[408084636,1773125445390,-184.906106,0.00019178,2]
[408084637,1773125445400,-186.493858,0.00019178,2]
[408084638,1773125445410,-186.493858,0.00019178,2]
[408084639,1773125445420,-186.493858,0.00019178,2]
[408084640,1773125445430,-186.493858,0.00019178,2]
[408084641,1773125445441,-186.493858,0.00019178,2]
[408084642,1773125445450,-186.493858,0.00019178,2]
[408084643,1773125445461,-186.493858,0.00019178,2]
[408084644,1773125445471,-186.493858,0.00019178,2]
[408084645,1773125445482,-186.493858,0.00019178,2]
[408084646,1773125445493,-186.493858,0.00019178,2]
[408084647,1773125445503,-186.493858,0.00019178,2]
[408084648,1773125445512,-186.493858,0.00019178,2]
[408084649,1773125445521,-186.493858,0.00019178,2]
[408084650,1773125445531,-186.493858,0.00019178,2]
[408084651,1773125445545,-151.0,0.00019178,2]
[408084652,1773125445556,-186.493858,0.00019178,2]
[408084653,1773125445568,-163.717381,0.00019178,2]
[408084654,1773125445578,-186.493858,0.00019178,2]
[408084655,1773125445591,-186.493858,0.00019178,2]
[408084656,1773125445601,-186.493858,0.00019178,2]
[408084657,1773125445611,-186.493856,0.00019178,2]
[408084658,1773125445623,-162.671328,0.00019178,2]
[408084659,1773125445633,-162.949211,0.00019178,2]
[408084660,1773125445643,-151.0,0.00019178,2]
[408084661,1773125445654,-151.0,0.00019178,2]
[408084662,1773125445664,-151.0,0.00019178,2]
[408084663,1773125445674,-151.0,0.00019178,2]
[408084664,1773125445684,-151.0,0.00019178,2]
[408084665,1773125445694,-151.0,0.00019178,2]
[408084666,1773125445704,-151.0,0.00019178,2]
[408084667,1773125445714,-151.0,0.00019178,2]
[408084668,1773125445723,-151.0,0.00019178,2]
[408084669,1773125445737,-151.0,0.00019178,2]
[408084670,1773125445747,-151.0,0.00019178,2]
[408084671,1773125445757,-169.36279,0.00019178,2]
[408084672,1773125445766,-318.753976,0.00019178,2]
[408084673,1773125445777,-318.753976,0.00019178,2]
[408084674,1773125445786,-318.753976,0.00019178,2]
[408084675,1773125445796,-318.753976,0.00019178,2]
[408084676,1773125445806,-318.753976,0.00019178,2]
[408084677,1773125445815,-318.753976,0.00019178,2]
[408084678,1773125445825,-318.753976,0.00019178,2]
[408084679,1773125445835,-318.753976,0.00019178,2]
[408084680,1773125445845,-318.753976,0.00019178,2]
[408084681,1773125445855,-318.753976,0.00019178,2]
[408084682,1773125445865,-318.753976,0.00019178,2]
[408084683,1773125445875,-318.753976,0.00019178,2]
[408084684,1773125445884,-318.753976,0.00019178,2]
[408084685,1773125445894,-318.753976,0.00019178,2]
[408084686,1773125445904,-151.0,0.00019178,2]
[408084687,1773125445914,-318.753976,0.00019178,2]
[408084688,1773125445923,-236.91424,0.00019178,2]
[408084689,1773125445937,-318.753976,0.00019178,2]
[408084690,1773125445947,-318.753976,0.00019178,2]
[408084691,1773125445956,-318.753976,0.00019178,2]
[408084692,1773125445966,-318.753976,0.00019178,2]
[408084693,1773125445976,-318.753982,0.00019178,2]
[408084694,1773125445986,-253.548355,0.00019178,2]
[408084695,1773125445995,-253.548355,0.00019178,2]
[408084696,1773125446005,-253.548355,0.00019178,2]
[408084697,1773125446014,-253.548355,0.00019178,2]
[408084698,1773125446024,-253.548355,0.00019178,2]
[408084699,1773125446033,-253.548355,0.00019178,2]
[408084700,1773125446042,-253.548355,0.00019178,2]
[408084701,1773125446052,-253.548355,0.00019178,2]
[408084702,1773125446061,-253.548355,0.00019178,2]
[408084703,1773125446070,-253.548355,0.00019178,2]
[408084704,1773125446080,-253.548355,0.00019178,2]
[408084705,1773125446089,-253.548355,0.00019178,2]
[408084706,1773125446099,-253.548355,0.00019178,2]
[408084707,1773125446108,-253.548355,0.00019178,2]
[408084708,1773125446118,-253.548355,0.00019178,2]
[408084709,1773125446131,-253.548355,0.00019178,2]
[408084710,1773125446140,-253.548355,0.00019178,2]
[408084711,1773125446150,-253.548355,0.00019178,2]
[408084712,1773125446159,-253.548355,0.00019178,2]